Cogmind - Beta 10.2 @@@ ROGUE MODE // 2022.03.04 @ 16:33:02 Player: WM2K Result: Destroyed by H-66 Slayer with Gauss Rifle Performance ------------- Evolutions (5) 2500 Regions Visited (7) 1400 Robots Destroyed (113) 565 Value Destroyed (3153) 3153 Prototype IDs (9) 180 Alien Tech Used (0) 0 Bonus (157) 157 TOTAL SCORE: 7955 Bonus ------- High Alert Combat Kills 157 Cogmind --------- Core Integrity 0/1000 Matter 165/300 Energy 98/100 System Corruption 2% Temperature Cool (0) Movement Core (50) Location -5/Factory Parts ------- > --- POWER (1) -------- (None) > --- PROPULSION (4) --- (None) > --- UTILITY (8) ------ Improved Terrain Scan Processor Improved Core Analyzer > --- WEAPON (4) ------- (None) > --- INVENTORY (4) ---- Light Angular Momentum Engine Improved Carbon-fiber Leg Wheel Tesla Rifle Peak State ------------ > --- POWER ------------ Light Angular Momentum Engine > --- PROPULSION ------- Gravmag System Improved Gravmag System Improved Gravmag System Improved Gravmag System > --- UTILITY ---------- Power Amplifier Weight Redist. System Advanced Sensor Array Improved Terrain Scan Processor Improved Core Analyzer Improved Shield Generator Improved Shield Generator System Shield > --- WEAPON ----------- Shock Rifle Proton Cannon Phase Cannon Heavy Machine Gun > --- INVENTORY -------- Light Angular Momentum Engine Improved Carbon-fiber Leg Armored Wheel Advanced Sensor Array [Rating: 73] Favorites ----------- Power Ion Engine Engine Ion Engine Power Core Light Nuclear Core Propulsion Aluminum Leg Treads Light Treads Leg Aluminum Leg Wheel Wheel Hover Unit Improved Gravmag System Flight Unit Improved Flight Unit Utility High-capacity Storage Unit Device Weight Redist. System Storage High-capacity Storage Unit Processor Improved Terrain Scan Processor Hackware System Shield Weapon Improved Assault Rifle Energy Gun Heavy EM Pulse Gun Energy Cannon Proton Cannon Ballistic Gun Improved Assault Rifle Ballistic Cannon Gauss Cannon Launcher Grenade Launcher Impact Weapon Heavy Hammer Slashing Weapon Chainsword Build | -11 -10 -9 -8 -8 -7 -6 -5 ------- Run | Scr Mat Mat Mat Sto Fac Fac Fac Slots Evolved 10 | . . 2 2 . 2 2 2 Power . | . . . . . . . . Propulsion 2 | . . 1 1 . . . . Utility 6 | . . 1 1 . 1 2 1 Weapon 2 | . . . . . 1 . 1 Parts Attached 191 | 7 15 27 17 14 69 27 15 Power 24 | 1 2 2 1 2 9 6 1 Engine 16 | 1 2 1 1 1 5 5 . Core 8 | . . 1 . 1 4 1 1 Reactor . | . . . . . . . . Propulsion 71 | 2 3 11 5 6 26 8 10 Treads 7 | . . 6 . . . 1 . Leg 23 | 2 3 4 . . 11 3 . Wheel 17 | . . . . 1 14 1 1 Hover 6 | . . . . . . 3 3 Flight 18 | . . 1 5 5 1 . 6 Utility 34 | 1 5 4 5 2 8 7 2 Device 16 | . 1 4 1 2 2 5 1 Storage 12 | 1 4 . 3 . 3 1 . Processor 5 | . . . 1 . 3 . 1 Hackware 1 | . . . . . . 1 . Protection . | . . . . . . . . Artifact . | . . . . . . . . Weapon 62 | 3 5 10 6 4 26 6 2 Energy Gun 13 | 3 4 2 . . 2 . 2 Energy Cannon 3 | . . . . . . 3 . Ballistic Gun 19 | . . 5 2 2 7 3 . Ballistic Cannon 10 | . . . 1 2 7 . . Launcher 3 | . . 1 2 . . . . Special Weapon . | . . . . . . . . Impact Weapon 12 | . 1 2 1 . 8 . . Slashing Weapon 2 | . . . . . 2 . . Piercing Weapon . | . . . . . . . . Special Melee Weapon . | . . . . . . . . Unidentified Prototypes 6 | . . 4 . . 1 1 . Parts Lost 76 | . 2 1 3 10 28 11 21 Power 11 | . 1 . . 1 5 2 2 Propulsion 33 | . . 1 1 5 12 5 9 Utility 10 | . . . 1 . 2 1 6 Weapon 22 | . 1 . 1 4 9 3 4 Highest Loss Streak 13 | . 2 1 2 4 5 9 13 Average Slot Usage (%) 85 | . 95 99 94 45 83 72 68 Engine 6 | . 13 10 . 2 2 4 1 Core 1 | . . . 8 . 3 . 2 Treads 2 | . . 11 . . . . . Leg 14 | . 28 20 . . 11 9 . Wheel 3 | . . . . . 10 2 . Hover 1 | . . . . . . 9 10 Flight 3 | . . . 35 18 1 . 8 Device 7 | . 4 10 7 . 4 13 17 Storage 17 | . 22 22 18 14 20 3 . Processor 5 | . . . 6 1 8 11 10 Energy Gun 5 | . 25 4 . . . . 1 Energy Cannon 1 | . . . . . . 9 6 Ballistic Gun 7 | . . 16 12 3 6 1 4 Ballistic Cannon 2 | . . . . 4 6 . . Impact Weapon 1 | . . . 2 . 2 1 . Naked Turns . | . . . . . . . . Heaviest Build 79 | 12 75 79 25 33 67 73 43 Greatest Support 63 | 20 20 63 24 24 53 54 59 Greatest Overweight (x) 13 | 2 3 13 1 3 5 6 4 Average Overweight (x) . | . . 1 . . 1 . . Largest Inventory Capacity 22 | 6 20 20 22 8 18 22 4 Average Capacity 13 | 5 10 20 8 7 15 7 4 Most Carried 20 | 2 17 20 20 8 18 14 4 Average Carried 11 | 1 8 19 8 6 12 5 3 Final Capacity 20 | 6 20 20 8 6 16 4 4 Final Carried 20 | 2 17 20 8 4 13 4 4 Class Distribution -------------------- 41% | Mutant 27% | Hauler-Mutant 16% | Scavenger-Mutant 4% | Sprinter 4% | Scavenger-Gunner Dominant Class ---------------- Mutant | -10/Materials Hauler-Mutant | -9/Materials Sprinter | -8/Materials Mutant | -8/Storage Scavenger-Mutant | -7/Factory Mutant | -6/Factory Mutant | -5/Factory Resources | -11 -10 -9 -8 -8 -7 -6 -5 ----------- Run | Scr Mat Mat Mat Sto Fac Fac Fac Matter Collected 3064 | 217 245 586 121 138 1317 245 195 Remotely . | . . . . . . . . Salvage Created 3836 | . 510 1201 267 42 1457 188 171 Parts 229 | . 35 73 26 2 80 3 10 Haulers Intercepted 10 | . 1 4 2 . 3 . . Recyclers Shooed 2 | . 1 . . . 1 . . Parts Field Recycled . | . . . . . . . . Retrieved Matter . | . . . . . . . . Parts Self-Destructed . | . . . . . . . . Prevented . | . . . . . . . . Kills | -11 -10 -9 -8 -8 -7 -6 -5 ------- Run | Scr Mat Mat Mat Sto Fac Fac Fac Combat Hostiles Destroyed 74 | . 10 19 11 1 25 3 5 Melee 10 | . . . . . 10 . . Guns 33 | . 10 15 . 1 3 . 4 Cannons 15 | . . . . . 11 3 1 AOE 15 | . . 4 11 . . . . Classes Destroyed 13 | . 5 4 1 . 2 1 . Worker 13 | . 2 2 2 . 7 . . Builder 6 | . . 2 1 . 3 . . Tunneler 2 | . . 1 1 . . . . Hauler 10 | . 1 4 2 . 3 . . Recycler 4 | . . 2 . . 2 . . Operator 1 | . . . . . . 1 . Watcher 3 | . 1 1 1 . . . . Swarmer 21 | . 3 4 7 . 3 . 4 Grunt 36 | . 7 9 3 1 14 2 . Brawler 2 | . . . 1 . 1 . . Sentry 8 | . . 6 . . 2 . . Hunter 3 | . . . . . 3 . . Programmer 4 | . . . . . 2 1 1 Best Kill Streak 18 | . 3 6 18 1 5 2 2 Combat Bots Only 8 | . 3 4 8 1 3 2 2 Max Kills in Single Turn 9 | . 2 3 9 1 1 1 1 Gunslinging . | . . . . . . . . Exploded 7 | . . 2 7 . . . . Melee 1 | . . . . . 1 . . Uniques/NPCs Destroyed . | . . . . . . . . Combat | -11 -10 -9 -8 -8 -7 -6 -5 -------- Run | Scr Mat Mat Mat Sto Fac Fac Fac Damage Taken 10614 | 1 453 715 641 1210 3658 1876 2060 Core 2880 | 1 59 100 60 398 486 768 1008 Absorbed by Shields 106 | . . . . 40 . 54 12 Core Remaining (%) 50 | 99 76 75 . 16 30 9 . Volleys Fired 220 | . 32 65 16 6 73 12 16 Largest 3 | . 2 2 2 2 3 3 3 Hottest 234 | . 90 101 53 67 151 234 170 Shots Fired 442 | . 60 126 20 12 179 19 26 Gun 302 | . 60 123 12 6 77 5 19 Cannon 129 | . . . . 6 102 14 7 Launcher 11 | . . 3 8 . . . . Special . | . . . . . . . . Kinetic 303 | . . 97 12 12 165 5 12 Thermal 45 | . 9 12 . . 7 11 6 Explosive 11 | . . 3 8 . . . . Electromagnetic 83 | . 51 14 . . 7 3 8 Robot Hit Streak 18 | . 13 17 18 4 10 5 6 Robot Miss Streak 6 | . 3 3 5 2 6 1 3 Penetration Max 1 | . . . . . 1 . . Secondary Targets 1 | . 1 . . . . . . Max Gunslinging Chain 1 | . 1 . . . . . . Shots Hit Robots 342 | . 39 101 6 8 166 10 12 Core Hits 165 | 1 17 41 24 3 63 6 10 Critical Hits 11 | . . 1 . 1 8 . 1 Critical Kills 4 | . . . . . 3 . 1 Critical Parts Destroyed 6 | . . 1 . 1 4 . . Melee Attacks 113 | . . 5 12 . 83 13 . Impact 76 | . . 5 12 . 46 13 . Slashing 37 | . . . . . 37 . . Piercing . | . . . . . . . . Sneak Attacks 16 | . . 2 . . 13 1 . Combat Hostiles 1 | . . . . . 1 . . Follow-up Attacks . | . . . . . . . . Damage Inflicted 9607 | 4 683 1845 1531 95 4692 429 328 Guns 3100 | . 508 1375 46 44 889 . 238 Cannons 1549 | . . . . 44 1203 275 27 Explosions 1935 | . 175 275 1485 . . . . Melee 2923 | . . 195 . . 2580 148 . Ramming 100 | 4 . . . 7 20 6 63 Kinetic 3333 | . . 1114 46 88 1925 . 160 Thermal 1750 | . 238 132 1072 . 101 207 . Explosive 657 | . . 244 413 . . . . Electromagnetic 844 | . 445 160 . . 66 68 105 Impact 1103 | . . 195 . . 760 148 . Slashing 1820 | . . . . . 1820 . . Piercing . | . . . . . . . . Highest Corruption 14 | . . 1 7 7 14 7 2 Average Corruption 2 | . . 1 7 7 3 5 1 Corruption Purged . | . . . . . . . . Effects 55 | . . 8 5 4 21 16 1 Message Errors 16 | . . 4 . 2 5 5 . Matter Fused 6 | . . . 2 . 2 2 . Heat Flow Errors 5 | . . . 1 2 1 1 . Energy Discharges 6 | . . . . . 4 2 . Parts Rejected 1 | . . . 1 . . . . Data Loss (minor) 9 | . . 3 . . 2 3 1 Data Loss (major) 2 | . . . . . 1 1 . Misfires 1 | . . . . . . 1 . Misdirections 1 | . . . . . 1 . . Targeting Errors 7 | . . 1 1 . 4 1 . Weapon Failures 1 | . . . . . 1 . . Overload Shots . | . . . . . . . . Overflow Damage 618 | . . 8 155 . 376 79 . Projectiles 24 | . . . . . 11 13 . Explosions 163 | . . 8 155 . . . . Melee 431 | . . . . . 365 66 . Knockbacks 23 | . . . . 1 20 2 . Impact 7 | . . . . . 5 2 . Kinetic 14 | . . . . 1 13 . . Secondary 2 | . . . . . 2 . . Self-Inflicted Damage 239 | 1 78 36 82 3 6 3 30 Shots 5 | . 2 1 2 . . . . Rammed 14 | 2 1 . . 2 1 2 6 Targets Rammed 15 | 2 1 . . 2 2 2 6 Kicked 1 | . . . . . 1 . . Crushed . | . . . . . . . . Highest Temperature 264 | . 198 264 184 219 262 217 185 Average Temperature 73 | . 74 82 105 62 66 78 71 Received Heat Transfer 2187 | . 177 255 45 387 1152 45 126 Effects 1 | . . . . . 1 . . Energy Bleed 1 | . . . . . 1 . . Siege Activations . | . . . . . . . . Robots Corrupted 1 | . . 1 . . . . . Combat Hostiles . | . . . . . . . . Parts Fried 14 | . 1 4 . . 7 2 . Impact Corruptions 10 | . . . . . 7 3 . Robots Melted . | . . . . . . . . Combat Hostiles . | . . . . . . . . Parts Melted 1 | . . . . . . 1 . Heat Transferred 1951 | . 435 272 800 . 222 222 . Parts Sabotaged . | . . . . . . . . Parts Stolen . | . . . . . . . . Parts Stripped . | . . . . . . . . Power Chain Reactions 4 | . 3 1 . . . . . Missiles Intercepted . | . . . . . . . . Alert | -11 -10 -9 -8 -8 -7 -6 -5 ------- Run | Scr Mat Mat Mat Sto Fac Fac Fac Peak Influence 757 | . 267 412 757 355 695 363 261 Initial 319 | . . 87 138 319 138 308 107 Average 211 | . 85 173 288 318 281 271 155 Maximum Alert Level 3 | . 1 2 3 1 2 1 1 Low Security (%) 57 | 100 92 63 59 . 47 23 85 Level 1 32 | . 7 32 20 100 25 76 14 Level 2 9 | . . 4 8 . 27 . . Level 3 . | . . . 10 . . . . Level 4 . | . . . . . . . . Level 5 . | . . . . . . . . High Security . | . . . . . . . . Max Security . | . . . . . . . . Squads Dispatched 23 | . 3 3 1 1 11 3 1 Investigation 1 | . 1 . . . . . . Extermination 6 | . . . . . 3 2 1 Reinforcement 12 | . 2 3 1 1 4 1 . Assault . | . . . . . . . . Garrison 4 | . . . . . 4 . . Intercept . | . . . . . . . . Construction Impeded 2 | . . . 1 . 1 . . Haulers Reinforced 2 | . . . . . 2 . . Stealth | -11 -10 -9 -8 -8 -7 -6 -5 --------- Run | Scr Mat Mat Mat Sto Fac Fac Fac Distress Signals 10 | . 2 4 2 1 1 . . Communications Jammed . | . . . . . . . . Distress Signals . | . . . . . . . . Times Spotted 197 | . 22 33 33 15 61 12 21 Peak Tracking Total 11 | . 5 5 11 9 8 6 7 Tactical Retreats 30 | . 2 1 2 2 18 2 3 Traps | -11 -10 -9 -8 -8 -7 -6 -5 ------- Run | Scr Mat Mat Mat Sto Fac Fac Fac Traps Triggered 12 | . 1 1 . 5 1 3 1 Indirectly . | . . . . . . . . Trap Hack Attempts . | . . . . . . . . Triggered . | . . . . . . . . Disarmed . | . . . . . . . . Reprogrammed . | . . . . . . . . Reused . | . . . . . . . . Traps Extracted . | . . . . . . . . Installed . | . . . . . . . . Triggered . | . . . . . . . . Machines | -11 -10 -9 -8 -8 -7 -6 -5 ---------- Run | Scr Mat Mat Mat Sto Fac Fac Fac Machines Disabled 22 | . 5 . 7 1 7 1 1 Max in Single Turn 2 | . 2 . 2 1 2 1 1 Machines Sabotaged . | . . . . . . . . Garrisons Compromised . | . . . . . . . . Overloaded Fab Kills . | . . . . . . . . Fab Network Shutdowns . | . . . . . . . . Hacking | -11 -10 -9 -8 -8 -7 -6 -5 --------- Run | Scr Mat Mat Mat Sto Fac Fac Fac Machines Accessed 14 | . 2 3 1 1 4 1 2 Terminals 12 | . 2 3 1 1 2 1 2 Fabricators 1 | . . . . . 1 . . Repair Stations 1 | . . . . . 1 . . Recycling Units . | . . . . . . . . Scanalyzers . | . . . . . . . . Garrison Access . | . . . . . . . . Total Hacks 28 | . 4 4 3 1 7 5 4 Successful 15 | . 4 3 1 1 4 1 1 Failed 13 | . . 1 2 . 3 4 3 Catastrophic 3 | . . . . . . 1 2 Database Lockouts . | . . . . . . . . Manual . | . . . . . . . . Terminals 25 | . 4 4 3 1 4 5 4 Fabricators 1 | . . . . . 1 . . Repair Stations 2 | . . . . . 2 . . Recycling Units . | . . . . . . . . Scanalyzers . | . . . . . . . . Garrison Access . | . . . . . . . . Terminal Hacks 13 | . 4 3 1 1 2 1 1 Record 1 | . . . . . . 1 . Prototype ID Bank 1 | . . . . . . . 1 Open Door 1 | . . . . 1 . . . Level Access Points 1 | . . 1 . . . . . Emergency Access Points 1 | . . . . . 1 . . Alert Level 2 | . . 2 . . . . . Locate Traps 1 | . . . . . 1 . . Transport Status 1 | . 1 . . . . . . Hauler Manifests 3 | . 2 . 1 . . . . Registered Components 1 | . 1 . . . . . . Fabricator Hacks 1 | . . . . . 1 . . Build 1 | . . . . . 1 . . Repair Station Hacks 1 | . . . . . 1 . . Scan Component 1 | . . . . . 1 . . Recycling Unit Hacks . | . . . . . . . . Scanalyzer . | . . . . . . . . Garrison Access Hacks . | . . . . . . . . Unauthorized Hacks . | . . . . . . . . Terminals . | . . . . . . . . Fabricators . | . . . . . . . . Repair Stations . | . . . . . . . . Recycling Units . | . . . . . . . . Scanalyzers . | . . . . . . . . Garrison Access . | . . . . . . . . Data Cores Recovered . | . . . . . . . . Used . | . . . . . . . . Hacking Detections 9 | . 1 1 1 . 3 1 2 Full Trace Events 1 | . . . 1 . . . . Feedback Events . | . . . . . . . . Feedback Blocked . | . . . . . . . . Robot Schematics Acquired . | . . . . . . . . Robots Built . | . . . . . . . . Matter . | . . . . . . . . Time . | . . . . . . . . Total Robot Build Rating . | . . . . . . . . Part Schematics Acquired . | . . . . . . . . Parts Built 2 | . . . . . 2 . . Matter 190 | . . . . . 190 . . Time 95 | . . . . . 95 . . Total Part Build Rating 10 | . . . . . 10 . . Parts Repaired . | . . . . . . . . Time . | . . . . . . . . Parts Recycled . | . . . . . . . . Recycled Matter . | . . . . . . . . Retrieved Matter . | . . . . . . . . Retrieved Components . | . . . . . . . . Parts Scanalyzed . | . . . . . . . . Part Schematics Acquired . | . . . . . . . . Parts Damaged . | . . . . . . . . Bothacking | -11 -10 -9 -8 -8 -7 -6 -5 ------------ Run | Scr Mat Mat Mat Sto Fac Fac Fac Used RIF Installer . | . . . . . . . . Robots Hacked . | . . . . . . . . Non-combat . | . . . . . . . . Combat . | . . . . . . . . Robot Hacks Applied . | . . . . . . . . Relay Couplers Released . | . . . . . . . . Robots Rewired . | . . . . . . . . Allies Hacked . | . . . . . . . . Hacks Repelled . | . . . . . . . . Allies | -11 -10 -9 -8 -8 -7 -6 -5 -------- Run | Scr Mat Mat Mat Sto Fac Fac Fac Total Allies . | . . . . . . . . Largest Group . | . . . . . . . . Highest-Rated Group . | . . . . . . . . Highest-Rated Ally . | . . . . . . . . Total Orders . | . . . . . . . . Ally Attacks . | . . . . . . . . Total Damage . | . . . . . . . . Kills . | . . . . . . . . Allies Corrupted . | . . . . . . . . Allies Melted . | . . . . . . . . Intel | -11 -10 -9 -8 -8 -7 -6 -5 ------- Run | Scr Mat Mat Mat Sto Fac Fac Fac Robot Analysis Total . | . . . . . . . . Derelict Logs Recovered . | . . . . . . . . Drone Launches 4 | . . . . 4 . . . Drone Recoveries . | . . . . . . . . Exploration | -11 -10 -9 -8 -8 -7 -6 -5 ------------- Run | Scr Mat Mat Mat Sto Fac Fac Fac Turns Passed 6571 | 85 1088 1601 223 272 2094 765 443 Spaces Moved 4435 | 59 663 685 359 227 1151 756 535 Core 281 | 15 . . . 74 4 111 77 Treads 227 | . . 227 . . . . . Legs 1607 | 44 663 457 . . 360 83 . Wheels 877 | . . . . 15 750 101 11 Hover 684 | . . . . . . 461 223 Flight 759 | . . 1 359 138 37 . 224 Fastest Speed 26 | 50 120 180 26 26 40 50 31 Average Speed 107 | 120 137 183 26 74 117 82 52 Slowest Speed 985 | 150 210 985 96 200 300 150 360 Overloaded Moves . | . . . . . . . . Propulsion Burnouts . | . . . . . . . . Robots Hopped 2 | . . . 2 . . . . Cave-ins Triggered 2 | . . . 1 . 1 . . Exploration Rate (%) 32 | 4 81 46 26 43 29 22 8 Regions Visited 7 Branch Regions 1 Pre-discovered Areas . | . . . . . . . . Known Exits Taken 1 | . . 1 . . . . . Unknown Exits Taken 6 | 1 1 . 1 1 1 1 . Scrap Searched . | . . . . . . . . Spaces Dug 45 | . . 1 20 . 13 11 . Terrain Destroyed 198 | . 7 26 113 1 35 12 4 Melee 34 | . . 1 12 . 13 8 . Projectile 31 | . . . . 1 22 4 4 AOE 133 | . 7 25 101 . . . . Terrain Rammed . | . . . . . . . . Walls Destroyed . | . . . . . . . . Machines Disabled . | . . . . . . . . Actions | -11 -10 -9 -8 -8 -7 -6 -5 --------- Run | Scr Mat Mat Mat Sto Fac Fac Fac Total 5649 | 69 785 906 446 314 1602 854 673 Wait 406 | . 33 58 19 40 160 11 85 Move 4424 | 58 662 684 354 226 1150 755 535 Hop 2 | . . . 2 . . . . Pick Up 109 | 2 24 27 8 . 35 7 6 Fast Attach 93 | 5 5 11 5 11 27 20 9 Attach 46 | 1 2 3 6 1 23 5 5 Detach 23 | . 1 5 1 1 9 3 3 Swap 52 | 1 8 13 6 2 19 2 1 Drop 114 | . 17 35 17 6 21 11 7 Fire 220 | . 32 65 16 6 73 12 16 Melee 113 | . . 5 12 . 83 13 . Ram 11 | . . . . 2 1 2 6 Kick 4 | 2 1 . . . 1 . . Crush . | . . . . . . . . Escape Stasis 32 | . . . . 19 . 13 . Rewire . | . . . . . . . . Trap . | . . . . . . . . Miscellaneous . | . . . . . . . . Route ------- -11/Scrapyard -10/Materials (discovered 2 exits: *Mat / [*Min]) -9/Materials (discovered 3 exits: *Mat x3) -8/Materials (discovered 2 exits: *Sto x2) -8/Storage -7/Factory -6/Factory -5/Factory History --------- Turn | Location | Event 22 | -11/Scrapyard | Discovered new exit (range 15) 86 | -11/Scrapyard | Entered Materials 311 | -10/Materials | Build established: Mutant 770 | -10/Materials | Discovered new exit (range 6) 1158 | -10/Materials | Discovered new exit (range 8) 1174 | -10/Materials | Entered another Materials area 1174 | -9/Materials | Evolved 2 slots: Propulsion x1, Utility x1 1285 | -9/Materials | Build established: Hauler-Mutant 2463 | -9/Materials | Discovered new exit (range 9) 2648 | -9/Materials | Identified exit to Materials 2775 | -9/Materials | Entered another Materials area 2775 | -8/Materials | Evolved 2 slots: Propulsion x1, Utility x1 2804 | -8/Materials | Discovered new exit (range 15) 2828 | -8/Materials | Discovered new exit (range 16) 2920 | -8/Materials | Crushed by falling debris 2993 | -8/Materials | Destroyed 8 combat bots 2998 | -8/Materials | Entered Storage 3114 | -8/Storage | Lost 3 parts (1p1n1w) 3169 | -8/Storage | Lost 4 parts (3n1w) 3186 | -8/Storage | Core integrity fell below 50% 3227 | -8/Storage | Core integrity fell below 20% 3264 | -8/Storage | Discovered new exit (range 7) 3270 | -8/Storage | Entered Factory 3270 | -7/Factory | Evolved 2 slots: Utility x1, Weapon x1 3352 | -7/Factory | Build established: Mutant 3406 | -7/Factory | Fabricated Imp. System Backup Module (x2) 3896 | -7/Factory | Garrison activated, responded to threat 3925 | -7/Factory | Lost 3 parts (1p1n1w) 4373 | -7/Factory | Build established: Scavenger-Mutant 4459 | -7/Factory | Lost 5 parts (1p2n2w) 4800 | -7/Factory | Garrison activated, responded to threat 5153 | -7/Factory | Crushed by falling debris 5153 | -7/Factory | System corruption reached 10% 5161 | -7/Factory | Core integrity fell below 50% 5184 | -7/Factory | Lost 4 parts (1p2n1u) 5284 | -7/Factory | Discovered new exit (range 11) 5364 | -7/Factory | Entered another Factory area 5364 | -6/Factory | Evolved 2 slots: Utility x2 5375 | -6/Factory | Lost 5 parts (1p2n2w) 5553 | -6/Factory | Core integrity fell below 50% 5557 | -6/Factory | Lost 9 parts (2p5n1u1w) 5595 | -6/Factory | Core integrity fell below 20% 6050 | -6/Factory | Discovered new exit (range 13) 6078 | -6/Factory | Build established: Mutant 6129 | -6/Factory | Entered another Factory area 6129 | -5/Factory | Evolved 2 slots: Utility x1, Weapon x1 6319 | -5/Factory | Lost 8 parts (1p1n4u2w) 6529 | -5/Factory | Core integrity fell below 50% 6549 | -5/Factory | Core integrity fell below 20% 6572 | -5/Factory | Destroyed by H-66 Slayer with Gauss Rifle Last Messages --------------- 06520_ Imp. Shield Generator destroyed. 06520_ Hvy. Machine Gun destroyed. 06520_ VTOL Module destroyed. 06522_ K-01 Serf collects debris. 06533_ Acquired Arm. Wheel. 06536_ Penetrated by Slug. 06541_ Slug penetrates Terminal. 06544_ Penetrated by Slug. 06545_ Arm. Wheel destroyed. 06548_ Penetrated by Slug. 06548_ K-01 Serf destroyed. 06548_ Slug penetrates H-66 Slayer. 06551_ Acquired Antigrav System. 06551_ Penetrated by Slug. 06551_ Antigrav System destroyed. 06551_ Penetrated by Slug. 06552_ Acquired 52 matter. 06554_ Acquired 24 matter. 06555_ Acquired Wheel. 06572_ System corrupted: Component data lost. Map ----- +----------------------------------------------------+ | ?????????????????????????????????????????????????? | | ?????????????????????????????????????????????????? | | ?????????????????????????????????????????????????? | | ?????????????????????????????????????????????????? | | ?????????????????????????????????????????????????? | | ?????????????????????????????????????????????????? | | ?????????????????????????????????????????????????? | | ?????????????????????????????????????????????????? | | ?????????????????????????????????????????????????? | | ?????????????????????????????????????????????????? | | ?????????????????????????????????????????????????? | | ?????????????????? ????????????????????????? | | ?????????????????# #???????????????????????? | | ?????????????????# ###########?????????????? | | ?????????????????# # #?????????????? | | ?????????????????# # !#?????????????? | | ?????????????????#k # #?????????????? | | ????############## # #?????????????? | | ????# # # #?????????????? | | ????# # # """" #?????????????? | | ????# # # """" #?????????????? | | ????# # k # """" #?????????????? | | ????# # # """" #?????????????? | | ????# # # """" ??????????????? | | ????#* # #p """" ??????????????? | | #???# # @ """" ??????????????? | | #???# + # #?????????????? | | #???# # # #?????????????? | | #???# # # #?????????????? | | #???# # h # #?????????????? | | ################## ###########?????????????? | | # ############l ^ ?????????????? | | # "" h R ^ ?????????????? | | T gg ?????????????? | | # ?????????????? | | # ############ ??????????????? | | #######??????????# ??????????????? | | #???????????????# ???????????????? | | ##??????????????#####+########+##???????????????? | | #??????????????????????????????????????????????? | | ] #??????????????????????????????????????????????? | | #??????????????????????????????????????????????? | | #??????????????????????????????????????????????? | | #??????????????????????????????????????????????? | | #???????????????????????????????????????????????? | | #???????????????????????????????????????????????? | | #???????????????????????????????????????????????? | | #???????????????????????????????????????????????? | | #???????????????????????????????????????????????? | | ##???????????????????????????????????????????????? | +----------------------------------------------------+ Best States ------------- Heat Dissipation 40 Energy Generation 20 Energy Capacity 280 Matter Stores 350 Matter Capacity 350 Sight Range 16 Robot Scan Range 16 Terrain Scan Range 14 Terrain Scan Density 210 ECM Strength 1 Power Amplification 20 Additional Mass Support 6 Evasion (%) 64 Core Analysis 8 Recoil Reduction 3 Defensive Hacking 10 Item Schematics ----------------- None Robot Schematics ------------------ None Fabricated ------------ Imp. System Backup Module | x2 | -7/Factory | Preloaded Alien Tech Used ----------------- None Achievements -------------- Just What I Needed Part-time Excavator Unlikely Earthworm Challenges ------------ None Game ------ Seed LargeCoilScrap Manual? 0 Play Time 02:31:05 Cumulative 17.5 hours Start 2022.03.04 @ 11:02:27 End 2022.03.04 @ 16:33:02 Sessions 3 Manual Loads 0 Difficulty Rogue Special Mode None Game No. 9 Rogue 9 Adventurer 0 Explorer 0 Win Type - Total 0 Types 0/0/0/0/0/0/0/0/0 Lore% 0 Gallery% 16 Achievement% 13 Wizard Run 0 Options --------- ASCII 1 Keyboard 0 Movement Mouse Keybinds 0 Fullscreen 1 Font 36/Smallcaps Map View 76x50 Tactical HUD 1 Map Filters NONE Filters NONE Steam X RUN: ea3e6206-5fc8-42ad-aaff-00073f470024